bitfinex-derivatives/quotes_SOLF0:USTF0_20250227
["timestamp","ask_amount","ask_price","bid_price","bid_amount"]
[1740629033693,17.49950892,138.64,138.62,7.2214]
[1740629033891,17.49950892,138.64,138.61,11.58639421]
[1740629034293,9.37433356,138.64,138.63,7.2212]
[1740629034494,9.26873356,138.64,138.63,7.2212]
[1740629035698,3.356e-05,138.64,138.63,7.2212]
[1740629038495,3.356e-05,138.64,138.63,11.54]
[1740629039304,3.356e-05,138.64,138.63,18.7612]
[1740629039900,3.356e-05,138.64,138.61,29.33426253]
[1740629040095,3.356e-05,138.64,138.61,40.87426253]
[1740629041501,3.356e-05,138.64,138.61,20.13006253]
[1740629041695,3.356e-05,138.64,138.58,216.43006253]
[1740629042596,3.356e-05,138.64,138.6,0.04980666]
[1740629044301,3.356e-05,138.64,138.6,7.27240666]
[1740629044996,3.356e-05,138.64,138.6,0.04980666]
[1740629045798,7.22123356,138.64,138.6,0.04980666]
[1740629045999,3.356e-05,138.64,138.58,196.3]
[1740629046195,3.356e-05,138.64,138.53,78.10098218]
[1740629046401,1.9607,138.67,138.57,7.2243]
[1740629046598,1.9654,138.66,138.54,12.49256323]
[1740629046794,1.9654,138.66,138.54,79.05354541]
[1740629047197,0.04998118,138.61,138.59,0.04561687]
[1740629047398,7.2215,138.63,138.59,0.04561687]
[1740629047601,0.04871722,138.61,138.59,0.04561687]
[1740629049700,0.04871722,138.61,138.54,0.95256323]
[1740629050702,0.04871722,138.61,138.56,0.05346468]
[1740629052008,0.04871722,138.61,138.6,7.2227]
[1740629052209,1.9654,138.66,138.59,11.54]
[1740629052901,1.9654,138.66,138.63,7.2211]
[1740629053108,1.9654,138.66,138.59,11.54]
[1740629053507,0.05565774,138.64,138.61,0.05459983]
[1740629054007,0.05565774,138.64,138.63,7.2212]
[1740629054406,4.02,138.68,138.61,196.29459983]
[1740629054600,4.02,138.68,138.67,7.2191]
[1740629055510,4.02,138.68,138.66,7.2195]
[1740629055803,4.02,138.68,138.66,7.26972092]
[1740629056001,4.02,138.68,138.66,0.05022092]
[1740629056599,4.02,138.68,138.67,7.2191]
[1740629061105,4.02,138.68,138.66,0.05022092]
[1740629061306,4.02,138.68,138.61,274.34098218]
[1740629061613,4.02,138.68,138.61,281.56298218]
[1740629061805,11.2391,138.68,138.61,274.34098218]
[1740629062008,4.02,138.68,138.61,274.34098218]
[1740629062403,0.04862433,138.66,138.64,7.2203]
[1740629062607,0.04862433,138.66,138.63,0.04766932]
[1740629063211,2.433e-05,138.66,138.65,7.2201]
[1740629063406,2.433e-05,138.66,138.65,18.7601]
[1740629063912,2.433e-05,138.68,138.67,7.2191]
[1740629065009,0.04559023,138.69,138.67,7.2191]
[1740629065209,14.42,138.72,138.66,3.95346297]
[1740629066315,14.42,138.72,138.71,7.217]
[1740629067814,0.04980708,138.73,138.72,7.2165]
[1740629068114,7.08e-06,138.73,138.72,18.7565]
[1740629073415,7.08e-06,138.73,138.72,214.8765]
[1740629076315,7.08e-06,138.73,138.72,249.38813218]
[1740629076514,17.59,138.78,138.77,7.2139]
[1740629080116,17.59,138.78,138.76,0.04869756]
[1740629080818,17.59,138.78,138.77,7.2139]
[1740629082012,21.71,139.03,138.76,0.04869756]
[1740629082217,3.7675,138.88,138.76,0.04869756]
[1740629082419,1.9129,138.87,138.74,5.50463942]
[1740629082618,1.9129,138.87,138.75,11.54]
[1740629083318,0.05174194,138.82,138.8,0.05039708]
[1740629083619,1.9129,138.87,138.8,0.05039708]
[1740629083822,0.04656102,138.82,138.8,0.05039708]
[1740629084021,1.9129,138.87,138.8,0.05039708]
[1740629084219,0.05335576,138.82,138.81,7.2118]
[1740629084420,1.9129,138.87,138.8,0.05039708]
[1740629084616,0.05181906,138.83,138.8,0.05039708]
[1740629084814,0.05181906,138.83,138.82,7.2112]
[1740629086219,0.05181906,138.83,138.81,7.2117]
[1740629087723,0.05181906,138.83,138.8,0.05039708]
[1740629088327,0.05181906,138.83,138.78,36.20746326]
[1740629089427,0.05181906,138.83,138.79,0.04675785]
[1740629089924,0.05181906,138.83,138.76,18.7341]
[1740629090325,7.26261906,138.83,138.76,18.7341]
[1740629090528,1.9493,138.82,138.76,18.7341]
[1740629090928,1.9493,138.82,138.76,7.2141]
[1740629091128,1.9493,138.82,138.78,0.04754074]
[1740629091327,1.9493,138.82,138.75,36.20906326]
[1740629091528,9.1611,138.82,138.75,36.20906326]
[1740629091725,1.9493,138.82,138.75,28.99426326]
[1740629091926,1.9493,138.82,138.79,7.2128]
[1740629092121,1.9493,138.82,138.75,28.99426326]
[1740629092321,1.9493,138.82,138.74,78.10098218]
[1740629092322,1.9493,138.82,138.74,28.99426326]
[1740629092521,1.9493,138.82,138.8,7.2121]
[1740629092929,2.00463648,138.82,138.77,0.04537283]
[1740629093530,2.00463648,138.82,138.79,7.2124]
[1740629094527,2.00463648,138.82,138.8,7.2122]
[1740629094832,0.05533648,138.82,138.79,11.52]
[1740629095023,3.648e-05,138.82,138.81,7.2118]
[1740629097733,3.648e-05,138.82,138.81,90.84448233]
[1740629097936,2.0187,138.9,138.81,83.63268233]
[1740629098645,2.0187,138.9,138.85,7.2097]
[1740629099041,0.05290993,138.89,138.86,0.05110758]
[1740629099235,0.05290993,138.89,138.87,7.2086]
[1740629099541,0.05290993,138.89,138.86,0.05110758]
[1740629099738,9.93e-06,138.89,138.88,7.2082]
[1740629101941,9.93e-06,138.89,138.87,11.52]
[1740629102343,9.93e-06,138.89,138.88,7.2082]
[1740629102844,9.93e-06,138.89,138.88,128.78210996]
[1740629103346,1.932,138.92,138.9,7.207]
[1740629103741,1.932,138.92,138.88,150.57246434]
[1740629103948,18.18,138.93,138.88,34.53025453]
[1740629104337,0.04709297,138.92,138.89,0.050044]
[1740629104837,9.297e-05,138.92,138.91,7.2066]
[1740629106447,9.297e-05,138.92,138.91,36.20515438]
[1740629107044,6.96649297,138.93,138.91,28.99855438]
[1740629107242,9.297e-05,138.93,138.92,7.2061]
[1740629109440,9.297e-05,138.93,138.92,41.73635453]
[1740629109747,0.03131369,138.94,138.92,41.73635453]
[1740629110354,0.03131369,138.94,138.92,34.53025453]
[1740629111249,1.8459,138.97,138.92,5.53170015]
[1740629112048,1.8459,138.97,138.92,12.73770015]
[1740629112543,0.0471296,138.96,138.93,0.04605139]
[1740629112748,0.0471296,138.96,138.93,7.25165139]
[1740629113346,0.0471296,138.96,138.93,0.04605139]
[1740629113547,0.0471296,138.96,138.94,195.82]
[1740629114950,0.0471296,138.96,138.94,203.0247]
[1740629115345,0.0471296,138.96,138.94,195.82]
[1740629115547,0.0471296,138.96,138.95,34.48939441]
[1740629115753,0.0471296,138.96,138.95,41.69399441]
[1740629115956,1.8766,139.01,138.95,34.48939441]
[1740629116354,1.8766,139.01,138.97,7.2035]
[1740629116654,1.8766,139.01,138.97,18.7235]
[1740629117351,0.05336897,139.0,138.98,0.0503069]
[1740629118553,0.05336897,139.0,138.98,7.2531069]
[1740629119465,0.05336897,139.0,138.98,0.0503069]
[1740629119665,3.7828,139.03,138.98,0.0503069]
[1740629120865,0.05234566,139.02,138.98,0.0503069]
[1740629122066,0.05234566,139.02,138.98,7.2530069]
[1740629122669,0.05234566,139.02,139.0,7.2019]
[1740629122868,0.05234566,139.02,138.98,0.0503069]
[1740629123167,0.05234566,139.02,138.99,7.2023]
[1740629123966,0.05234566,139.02,138.98,0.0503069]
[1740629124166,4.566e-05,139.02,139.01,7.2014]
[1740629124580,11.91,139.04,139.03,7.2004]
[1740629124872,0.3627,139.04,139.03,7.2004]
[1740629125773,7.1928,139.18,139.02,0.04657541]
[1740629126067,1.957,139.17,138.98,1.43905597]
[1740629126272,7.1938,139.16,138.98,1.43905597]
[1740629126473,9.1602,139.16,138.98,1.43905597]
[1740629126664,1.9664,139.16,138.98,1.43905597]
[1740629127068,0.04634179,139.08,139.06,0.05323206]
[1740629127272,0.04634179,139.08,139.07,11.5]
[1740629127573,0.04643111,139.09,139.07,11.5]
[1740629127774,1.9664,139.16,139.07,11.5]
[1740629127973,0.05483381,139.09,139.07,11.55247935]
[1740629128182,1.957,139.15,139.07,11.5]
[1740629128473,0.0528907,139.09,139.07,11.55310233]
[1740629128672,9.1516,139.15,139.07,11.55310233]
[1740629128873,0.05380986,139.09,139.07,0.05310233]
[1740629129074,192.0,139.14,139.07,0.05310233]
[1740629129273,0.04858145,139.09,139.07,7.25140233]
[1740629129474,192.0,139.14,139.07,7.25140233]
[1740629129675,1.957,139.15,139.07,0.05310233]
[1740629129676,0.04777585,139.09,139.07,0.05310233]
[1740629129874,1.957,139.15,139.08,7.1978]
[1740629130072,0.05097125,139.09,139.06,195.68]
[1740629130267,0.05264841,139.13,139.1,0.04800058]
[1740629130466,0.05264841,139.13,139.06,195.68]
[1740629130668,1.957,139.15,139.06,195.68]
[1740629130872,0.04615351,139.11,139.1,0.04989248]
[1740629131073,1.957,139.15,139.1,0.04989248]
[1740629131377,0.04751278,139.12,139.1,0.04989248]
[1740629131975,0.04751278,139.12,139.11,11.5]
[1740629132370,0.04751278,139.12,139.11,18.6963]
[1740629133278,0.04751278,139.12,139.11,11.5]
[1740629134278,0.04751278,139.12,139.11,18.6963]
[1740629136980,2.008,139.19,139.11,18.6963]
[1740629137680,2.008,139.19,139.09,28.99855438]
[1740629137681,2.008,139.19,139.1,11.5]
[1740629138080,0.05150357,139.16,139.13,0.05007555]
[1740629138485,7.19073741,139.17,139.13,0.05007555]
[1740629138982,192.0,139.16,139.11,31.40982837]
[1740629139186,192.0,139.16,139.11,19.16212837]
[1740629140187,0.051511,139.15,139.12,0.04559054]
[1740629142288,0.051511,139.15,139.09,77.32947835]
[1740629142683,0.051511,139.15,139.1,5.47606356]
[1740629143084,0.051511,139.15,139.09,76.76147835]
[1740629143279,0.051511,139.15,139.11,0.04815134]
[1740629143485,0.051511,139.15,139.09,76.76147835]
[1740629143682,199.1951,139.14,139.09,76.76147835]
[1740629143886,199.1951,139.14,139.09,70.63687835]
[1740629144084,199.1951,139.14,139.09,63.65967835]
[1740629144686,7.1951,139.14,139.1,0.05528615]
[1740629144887,7.245811,139.15,139.1,0.05528615]
[1740629145190,0.051511,139.15,139.1,0.05528615]
[1740629145378,7.245811,139.15,139.1,7.25208615]
[1740629145586,0.051511,139.15,139.1,0.05528615]
[1740629147386,0.051511,139.15,139.11,7.1962]
[1740629149090,0.051511,139.15,139.12,7.1957]
[1740629150190,7.195,139.14,139.1,7.25188615]
[1740629150392,192.0,139.13,139.1,7.25188615]
[1740629150690,192.0,139.13,139.1,0.05528615]
[1740629150892,7.1958,139.12,139.1,0.05528615]
[1740629151390,192.0,139.13,139.1,0.05528615]
[1740629160390,0.051511,139.15,139.1,7.25168615]
[1740629160693,0.051511,139.15,139.1,0.05528615]
[1740629163387,0.051511,139.15,139.1,7.25208615]
[1740629163996,0.051511,139.15,139.1,0.05528615]
[1740629164691,0.051511,139.15,139.14,7.1947]
[1740629165787,0.051511,139.15,139.13,0.05483584]
[1740629165788,192.0,139.22,139.17,7.1931]
[1740629165989,0.26254,139.23,139.17,7.1931]
[1740629166391,0.26254,139.23,139.15,11.5]
[1740629166894,7.1859,139.32,139.21,7.1909]
[1740629167088,22.16366012,139.33,139.21,7.1909]
[1740629167397,0.05042938,139.28,139.26,0.04734901]
[1740629167588,0.45366012,139.33,139.15,11.5]
[1740629167793,0.05525043,139.28,139.26,0.05414846]
[1740629167994,7.185,139.33,139.23,7.1897]
[1740629168191,0.04914755,139.28,139.26,0.04675239]
[1740629168394,192.0,139.31,139.15,11.5]
[1740629168595,0.05268949,139.28,139.26,7.23856565]
[1740629168797,192.0,139.3,139.15,11.5]
[1740629169000,267.21,139.38,139.15,11.5]
[1740629169199,0.05378163,139.24,139.21,0.04932283]
[1740629169400,11.5,139.3,139.13,12.44845868]
[1740629169704,0.04720796,139.24,139.21,0.04561793]
[1740629169896,33.49065,139.3,139.13,12.44845868]
[1740629170696,7.1886,139.26,139.13,0.94845868]
[1740629170897,33.49065,139.3,139.13,0.94845868]
[1740629171205,0.05487104,139.21,139.18,7.24278714]
[1740629171405,33.49065,139.3,139.18,7.1926]
[1740629171706,0.05042753,139.21,139.2,7.1912]
[1740629171907,7.1876,139.28,139.2,7.1912]
[1740629172103,11.78065,139.3,139.19,0.04837877]
[1740629172104,6.388e-05,139.22,139.19,0.04837877]
[1740629172301,0.28065,139.3,139.13,0.94845868]
[1740629173408,5.528e-05,139.23,139.2,0.04860694]
[1740629173610,0.28065,139.3,139.2,11.5]
[1740629173799,0.28065,139.3,139.21,5.9945]
[1740629174206,118.71747902,139.44,139.22,195.48]
[1740629174403,118.71747902,139.44,139.23,2.73510179]
[1740629174606,0.04316285,139.34,139.32,0.04858783]
[1740629175000,118.71747902,139.44,139.32,0.05037455]
[1740629175200,118.71747902,139.44,139.24,1.43636885]
[1740629175201,140.42747902,139.44,139.24,1.43636885]
[1740629175405,0.04181948,139.38,139.35,0.05358307]
[1740629175602,7.1811,139.41,139.29,2.0377]
[1740629175807,0.04181948,139.38,139.35,0.04725103]
[1740629176514,0.04181948,139.38,139.28,11.6]
[1740629176714,21.71,139.42,139.26,195.48]
[1740629177108,7.1831,139.37,139.26,202.6684]
[1740629177517,7.1831,139.37,139.26,7.1884]
[1740629177718,7.1831,139.37,139.25,4.0735]
[1740629177719,0.04615587,139.33,139.3,0.05186466]
[1740629177919,7.1824,139.38,139.27,7.188]
[1740629178221,0.05148572,139.33,139.3,0.04616424]
[1740629178422,192.0,139.35,139.26,12.50520373]
[1740629178616,0.05088865,139.33,139.3,0.05375632]
[1740629180422,234.0,139.41,139.3,0.05375632]
[1740629180423,192.0,139.42,139.3,0.05375632]
[1740629180721,21.71,139.48,139.31,11.56]
[1740629180916,21.71,139.48,139.32,3.8279]
[1740629181121,1.29924385,139.47,139.32,15.5479]
[1740629181319,21.71,139.45,139.32,3.8279]
[1740629181524,21.71,139.45,139.32,1.9081]
[1740629181722,7.21988185,139.4,139.37,0.0452531]
[1740629182128,0.03818185,139.4,139.26,1.9198]
[1740629182426,1.29975356,139.43,139.27,7.1876]
[1740629182820,1.29975356,139.43,139.26,1.9198]
[1740629183023,1.29975356,139.43,139.28,7.1871]
[1740629183226,0.0484908,139.36,139.33,0.04672688]
[1740629183425,192.0,139.35,139.22,1.9081]
[1740629183723,7.1855,139.32,139.24,7.1895]
[1740629184320,7.1855,139.32,139.22,1.9081]
[1740629184321,7.1855,139.32,139.25,7.189]
[1740629184522,0.05116352,139.29,139.27,0.0526938]
[1740629185019,0.05116352,139.29,139.19,36.12387893]
[1740629185222,1.30054012,139.35,139.19,36.12387893]
[1740629185418,1.30054012,139.35,139.19,28.93217893]
[1740629186225,0.04939869,139.28,139.26,0.05140067]
[1740629186427,192.0,139.27,139.17,3.7194]
[1740629186728,0.05262232,139.25,139.17,10.9122]
[1740629187030,0.05262232,139.25,139.21,0.04525486]
[1740629189733,192.0,139.26,139.21,0.04525486]
[1740629190928,0.04976209,139.25,139.21,0.04525486]
[1740629191130,192.0,139.26,139.21,0.04525486]
[1740629192227,0.05080879,139.25,139.21,7.23625486]
[1740629192429,7.1868,139.3,139.21,7.191]
[1740629192630,11.74,139.35,139.21,7.191]
[1740629192935,7.1851,139.33,139.21,7.191]
[1740629193530,0.02966244,139.28,139.26,0.04916599]
[1740629193833,7.1851,139.33,139.26,0.04916599]
[1740629194234,0.02966244,139.31,139.26,0.04916599]
[1740629195727,7.21576244,139.31,139.26,0.04916599]
[1740629195937,0.02966244,139.31,139.26,0.04916599]
[1740629201739,0.02966244,139.31,139.26,7.23766599]
[1740629204031,0.02966244,139.31,139.26,0.04916599]
[1740629204231,0.02966244,139.31,139.27,7.188]
[1740629204642,0.02966244,139.31,139.26,0.04916599]
[1740629204941,0.02966244,139.31,139.26,7.23766599]
[1740629205441,0.02966244,139.31,139.27,7.188]
[1740629206543,0.02966244,139.31,139.26,7.23746599]
[1740629207240,0.02966244,139.31,139.22,28.93217893]
[1740629207241,459.45,139.3,139.22,28.93217893]
[1740629207440,0.1329,139.29,139.22,28.93217893]
[1740629208644,7.189,139.25,139.24,0.05356224]
[1740629208941,0.04573953,139.27,139.22,28.93217893]
[1740629209250,0.04573953,139.27,139.2,116.04220981]
[1740629210043,0.04573953,139.27,139.22,0.04584676]
[1740629210641,7.1891,139.25,139.22,0.04584676]
[1740629211038,7.1901,139.23,139.22,0.04584676]
[1740629211438,0.054871,139.24,139.22,0.04584676]
[1740629211743,0.04638848,139.24,139.22,0.04584676]
[1740629212639,7.1884,139.27,139.22,0.04584676]
[1740629212945,192.0,139.32,139.21,1.8822]
[1740629213143,213.71,139.31,139.21,1.8822]
[1740629213344,7.1892,139.25,139.21,1.8822]
[1740629213746,0.04899142,139.24,139.22,0.04621344]
[1740629214043,192.0,139.3,139.22,0.04621344]
[1740629214342,7.1901,139.23,139.22,0.04621344]
[1740629214544,192.0,139.28,139.16,1.8743]
[1740629214744,0.04542312,139.24,139.21,0.05032392]
[1740629214947,192.0,139.23,139.16,1.8743]
[1740629215239,192.0,139.23,139.21,0.05396171]
[1740629215443,7.1917,139.2,139.18,0.04604869]
[1740629215640,0.0459796,139.21,139.18,0.04604869]
[1740629218048,7.2371796,139.21,139.18,0.04604869]
[1740629218243,0.0459796,139.21,139.18,0.04604869]
[1740629221448,7.2373796,139.21,139.18,0.04604869]
[1740629222551,0.0459796,139.21,139.18,0.04604869]
[1740629227946,192.0,139.2,139.18,0.04604869]
[1740629228352,199.1929,139.19,139.18,0.04604869]
[1740629230461,192.0,139.19,139.18,0.04604869]
[1740629231461,182.8092,139.19,139.18,0.04604869]
[1740629231656,176.6818,139.19,139.18,0.04604869]
[1740629232570,0.0459796,139.21,139.18,0.04604869]
[1740629234663,176.6818,139.26,139.18,0.04604869]
[1740629235871,0.04002258,139.23,139.22,7.1908]
[1740629236674,176.6818,139.26,139.21,0.04613853]
[1740629236871,176.6818,139.26,139.25,7.1898]
[1740629237079,176.6818,139.26,139.22,1.9112]
[1740629237471,176.6818,139.26,139.17,2.0403]
[1740629237674,176.6818,139.26,139.18,1.9815]
[1740629237870,176.6818,139.26,139.2,0.05296795]
[1740629239079,176.6818,139.26,139.22,7.1908]
[1740629239575,176.6818,139.26,139.2,0.05296795]
[1740629239776,1.9976,139.33,139.2,0.05296795]
[1740629239977,1.9976,139.33,139.19,28.98537626]
[1740629240172,1.9976,139.33,139.25,0.04982141]
[1740629240678,1.9976,139.33,139.28,7.1882]
[1740629241067,1.9976,139.33,139.29,0.04783118]
[1740629241467,1.9976,139.33,139.18,13.6615]
[1740629241875,1.9976,139.33,139.19,1.8509]
[1740629242275,7.1876,139.3,139.19,1.8509]
[1740629242576,7.1876,139.3,139.22,7.191]
[1740629242774,0.04783119,139.26,139.23,0.04844182]
[1740629242973,176.6818,139.28,139.19,1.8509]
[1740629243170,0.04783119,139.26,139.23,0.05205892]
[1740629243778,0.04783119,139.26,139.25,7.1898]
[1740629244380,0.04783119,139.26,139.24,7.1901]
[1740629245081,0.04783119,139.26,139.23,7.24265892]
[1740629245279,0.04783119,139.26,139.23,0.05205892]
[1740629247081,0.04783119,139.26,139.23,7.24275892]
[1740629247282,0.04783119,139.26,139.23,0.05205892]
[1740629247684,0.04783119,139.26,139.24,7.1902]
[1740629248881,176.6818,139.32,139.26,7.1892]
[1740629249084,176.6818,139.32,139.24,11.66]
[1740629249385,1.9783,139.38,139.29,7.1876]
[1740629249578,1.9783,139.38,139.25,4.0383]
[1740629249776,1.9783,139.38,139.25,199.4383]
[1740629249982,1.9783,139.38,139.3,0.04932393]
[1740629250385,1.9783,139.38,139.32,7.1861]
[1740629250878,1.9783,139.38,139.34,0.05412349]
[1740629252483,21.71,139.37,139.26,28.98537626]
[1740629252686,198.44233489,139.37,139.26,28.98537626]
[1740629252885,198.3918,139.36,139.26,28.98537626]
[1740629253085,200.3009,139.35,139.26,28.98537626]
[1740629253283,178.575,139.34,139.26,28.98537626]
[1740629253780,0.05412349,139.31,139.29,0.05379892]
[1740629254087,176.6818,139.3,139.26,36.17427626]
[1740629254287,176.6818,139.3,139.26,7.1889]
[1740629254484,176.6818,139.3,139.22,11.68]
[1740629254684,176.6818,139.3,139.27,7.1887]
[1740629254884,176.6818,139.3,139.2,1.9142]
[1740629255085,176.6818,139.29,139.27,0.05454669]
[1740629255280,176.6818,139.29,139.25,7.1893]
[1740629255486,176.6818,139.29,139.2,1.9142]
[1740629255681,176.6818,139.28,139.2,1.9142]
[1740629255988,176.6818,139.28,139.23,7.1904]
[1740629256387,183.92399359,139.27,139.24,0.05244284]
[1740629256580,1.8896,139.26,139.21,7.1918]
[1740629256784,1.8896,139.26,139.17,301.63971295]
[1740629257080,1.8896,139.26,139.19,7.1924]
[1740629257487,1.8896,139.26,139.17,195.36]
[1740629257789,0.04970578,139.24,139.21,0.05312224]
[1740629261784,7.24040578,139.24,139.21,0.05312224]
[1740629261987,0.04970578,139.24,139.21,0.05312224]
[1740629262286,7.1909,139.23,139.21,0.05312224]
[1740629262685,0.04970578,139.24,139.21,0.05312224]
[1740629262988,7.1909,139.23,139.21,0.05312224]
[1740629263288,0.04970578,139.24,139.21,0.05312224]
[1740629264183,7.1913,139.22,139.21,0.05312224]
[1740629265692,176.6818,139.22,139.13,7.1959]
[1740629265886,7.1937,139.18,139.11,2.0123]
[1740629266092,176.6818,139.22,139.11,2.0123]
[1740629266589,176.6818,139.22,139.12,7.1961]
[1740629266889,176.6818,139.22,139.11,2.0123]
[1740629267085,0.05394729,139.18,139.16,0.0521285]
[1740629268390,7.1939,139.17,139.16,0.0521285]
[1740629268791,0.05394729,139.18,139.09,197.406]
[1740629268991,7.1951,139.15,139.09,202.5777]
[1740629269187,33.21,139.24,139.07,30.97567626]
[1740629269491,1.30166967,139.23,139.1,7.1975]
[1740629269888,1.30166967,139.23,139.09,7.1977]
[1740629270086,1.30166967,139.23,139.15,0.04637312]
[1740629270087,0.04915303,139.18,139.15,0.04637312]
[1740629270393,0.04915303,139.18,139.07,1.9903]
[1740629270592,1.30166967,139.23,139.07,1.9903]
[1740629271086,1.30166967,139.23,139.1,7.1975]
[1740629271489,0.04931097,139.18,139.15,0.05393627]
[1740629271689,0.04931097,139.18,139.07,1.9903]
[1740629271889,0.04931097,139.18,139.1,7.1971]
[1740629272089,1.30166967,139.23,139.1,7.1971]
[1740629272893,0.05513869,139.18,139.15,9.492e-05]
[1740629273188,176.6818,139.17,139.15,9.492e-05]
[1740629273392,178.6011,139.17,139.15,9.492e-05]
[1740629274193,7.1944,139.16,139.15,9.492e-05]
[1740629283000,30.08659133,139.16,139.15,9.492e-05]
[1740629283908,28.7844,139.16,139.15,9.492e-05]
[1740629284104,240.89252791,139.16,138.98,28.98537626]
[1740629284303,1.30252791,139.15,138.98,28.98537626]
[1740629284605,1.30252791,139.15,138.95,2.0397]
[1740629284804,1.30252791,139.15,138.96,7.2047]
[1740629285306,7.2001,139.05,139.04,0.051293]
[1740629285604,11.56,139.07,138.96,7.2047]
[1740629285805,3.90398461,139.06,139.03,0.04603668]
[1740629286102,7.2011,139.04,139.03,0.05300543]
[1740629286305,3.90385916,139.06,139.03,0.05300543]
[1740629286901,192.0,139.05,139.03,0.05300543]
[1740629288309,199.2002,139.05,139.03,0.05300543]
[1740629288798,7.2006,139.04,139.03,0.05300543]
[1740629289003,194.0191,139.05,138.95,2.0397]
[1740629289206,194.0191,139.05,138.95,9.2449]
[1740629289502,192.0,139.05,138.95,2.0397]
[1740629289706,192.0,139.05,138.96,7.2043]
[1740629290098,0.04711749,139.02,138.99,0.05337328]
[1740629296804,7.2025,139.01,138.99,0.05337328]
[1740629297015,0.04711749,139.02,138.99,0.05337328]
[1740629298708,7.2027,139.0,138.99,0.05337328]
[1740629302007,7.2027,139.0,138.99,7.328e-05]
[1740629304416,28.7927,139.0,138.99,7.328e-05]
[1740629304606,30.09645452,139.0,138.99,7.328e-05]
[1740629310023,28.7927,139.0,138.99,7.328e-05]
[1740629310223,30.09675223,139.0,138.99,7.328e-05]
[1740629311718,30.09715369,139.0,138.99,7.328e-05]
[1740629313226,28.7927,139.0,138.99,7.328e-05]
[1740629313527,30.09696702,139.0,138.99,7.328e-05]
[1740629317226,31.53581594,139.0,138.99,7.328e-05]
[1740629317827,39.05593983,139.0,138.99,7.328e-05]
[1740629318026,37.75167281,139.0,138.99,7.328e-05]
[1740629318224,39.0561917,139.0,138.99,7.328e-05]
[1740629318424,21.59,138.97,138.82,5.9678]
[1740629318725,7.2115,138.83,138.82,5.9678]
[1740629318924,225.13,138.89,138.78,106.27971295]
[1740629319126,7.2126,138.81,138.78,106.27971295]
[1740629319730,7.25838225,138.81,138.78,106.33101847]
[1740629320632,0.04578225,138.81,138.78,106.33101847]
[1740629320829,0.04578225,138.81,138.78,81.33101847]
[1740629321331,0.04578225,138.81,138.78,0.05130552]
[1740629321732,7.2136,138.79,138.78,0.05130552]
[1740629322433,7.2157,138.75,138.74,69.96161847]
[1740629322731,21.59,138.79,138.74,69.96161847]
[1740629323333,11.54,138.81,138.74,69.96161847]
[1740629323722,0.05369317,138.79,138.76,0.04958155]
[1740629324733,11.54,138.81,138.76,0.04958155]
[1740629325434,7.2132,138.8,138.76,0.04958155]
[1740629325933,0.05515328,138.79,138.76,0.04958155]
[1740629328430,7.26925328,138.79,138.76,0.04958155]
[1740629329834,7.2141,138.78,138.76,0.04958155]
[1740629330025,0.05515328,138.79,138.76,0.04958155]
[1740629330230,11.54,138.81,138.76,0.04958155]
[1740629330834,11.54,138.87,138.76,7.26438155]
[1740629331033,11.54,138.87,138.76,7.2148]
[1740629331235,7.2127,138.81,138.76,7.2148]
[1740629331434,7.2127,138.81,138.8,0.05086863]
[1740629331638,7.2127,138.81,138.76,7.2148]
[1740629331835,7.2127,138.81,138.79,0.04654042]
[1740629332534,7.26099645,138.82,138.79,0.04654042]
[1740629333236,0.04879645,138.82,138.79,0.04654042]
[1740629334528,7.2131,138.8,138.79,0.04654042]
[1740629335336,7.2131,138.8,138.79,4.042e-05]
[1740629335734,40.3431,138.8,138.79,4.042e-05]
[1740629337437,45.54912654,138.8,138.79,4.042e-05]
[1740629338135,23.95912654,138.8,138.79,4.042e-05]
[1740629338737,23.95915421,138.8,138.79,4.042e-05]
[1740629339843,22.6535,138.8,138.79,4.042e-05]
[1740629340142,23.9591335,138.8,138.79,4.042e-05]
[1740629341333,7.2131,138.8,138.79,4.042e-05]
[1740629345237,28.8031,138.8,138.79,4.042e-05]
[1740629345447,30.10871932,138.8,138.79,4.042e-05]
[1740629346742,28.8031,138.8,138.79,4.042e-05]
[1740629346941,30.10877191,138.8,138.79,4.042e-05]
[1740629348542,32.03608249,138.8,138.79,4.042e-05]
[1740629350343,30.7304,138.8,138.79,4.042e-05]
[1740629350546,28.8031,138.8,138.79,4.042e-05]
[1740629350844,30.10882018,138.8,138.79,4.042e-05]